bitfinex/quotes_ETHUSD_20220218
["timestamp","ask_amount","ask_price","bid_price","bid_amount"]
[1645202816282,1.41187237,2818.1,2817.8,0.02966554]
[1645202816482,2.29987517,2818.1,2817.8,0.02966554]
[1645202816683,1.77615,2818.0,2817.8,0.02966554]
[1645202816887,4.44044,2818.0,2817.8,0.02966554]
[1645202817084,3.5,2817.9,2817.8,6.554e-05]
[1645202817340,3.5,2817.9,2817.6,0.00161784]
[1645202817341,13.60521,2817.9,2817.6,0.00161784]
[1645202817536,5.0,2817.8,2817.6,4.267e-05]
[1645202817737,5.0,2817.8,2816.9,0.00537201]
[1645202817738,21.227,2817.7,2816.9,0.00537201]
[1645202817941,1.77668,2817.3,2816.9,0.00537201]
[1645202818138,1.18829,2817.3,2816.9,0.00537201]
[1645202818345,0.88828,2817.1,2816.9,0.00537201]
[1645202818739,0.88828,2817.1,2815.7,0.37423023]
[1645202818938,8.55548,2817.4,2815.8,1.50951375]
[1645202819140,8.85548,2817.4,2815.8,1.50951375]
[1645202819342,0.50993351,2817.2,2815.8,1.50951375]
[1645202819544,1.69820351,2817.2,2815.8,1.50951375]
[1645202819740,1.99820351,2817.2,2815.8,1.50951375]
[1645202819940,1.68926324,2817.2,2815.8,1.50951375]
[1645202820141,1.39820351,2817.2,2815.8,1.50951375]
[1645202820347,1.39820351,2817.2,2815.9,0.1774]
[1645202820542,1.39820351,2817.2,2815.8,0.1774]
[1645202820980,2.28648081,2817.2,2815.8,0.1774]
[1645202821185,0.88832,2817.1,2816.4,0.00161517]
[1645202821380,0.88827,2817.0,2816.4,0.00161517]
[1645202822186,6.779,2817.4,2816.4,0.00161517]
[1645202822388,6.779,2817.4,2816.6,0.00161506]
[1645202822582,3.7952,2817.4,2816.6,0.00161506]
[1645202823482,3.7952,2817.4,2816.9,0.00161489]
[1645202823483,1.77629,2817.2,2816.9,0.00161489]
[1645202823882,3.7952,2817.4,2816.9,0.00161489]
[1645202824283,0.02290655,2817.2,2816.9,0.00161489]
[1645202824585,0.0311221,2817.2,2816.9,0.00322975]
[1645202824866,0.0311221,2817.2,2816.9,0.00161486]
[1645202825751,0.0311221,2817.2,2816.9,1.77728996]
[1645202825954,0.0311221,2817.2,2816.9,0.00133088]
[1645202827158,0.0311221,2817.2,2816.9,0.00266176]
[1645202827356,0.0311221,2817.2,2816.9,0.00133088]
[1645202828154,1.8074421,2817.2,2816.9,0.00133088]
[1645202829303,0.02235528,2817.1,2816.9,0.00133088]
[1645202829607,0.02235528,2817.1,2816.9,0.00138234]
[1645202829608,1.77642,2817.0,2816.9,0.00138234]
[1645202830009,2.07642,2817.0,2816.9,0.00138234]
[1645202830205,2.46253616,2817.0,2816.9,0.00138234]
[1645202831002,2.46253616,2817.0,2816.8,0.00138239]
[1645202831203,0.3,2816.9,2816.8,0.00138239]
[1645202832004,0.88842,2816.5,2816.3,0.00166279]
[1645202832228,0.57714381,2816.4,2816.3,0.00166279]
[1645202832632,0.96325997,2816.4,2816.3,0.00166279]
[1645202833229,0.96325997,2816.4,2815.7,0.07729292]
[1645202833230,0.88859,2815.9,2815.7,0.07729292]
[1645202833430,0.55626846,2815.8,2815.7,0.07729292]
[1645202835031,0.88859,2815.9,2815.7,0.07729292]
[1645202835433,3.498,2816.2,2815.7,0.07729292]
[1645202836179,0.64058057,2815.9,2815.7,0.07729292]
[1645202836779,1.77708,2815.9,2815.7,0.07888716]
[1645202836982,1.1611,2816.6,2815.7,0.07888716]
[1645202837981,0.57411578,2816.5,2815.7,0.07729292]
[1645202838182,1.46237578,2816.5,2815.7,0.07729292]
[1645202838881,0.05170418,2815.8,2815.7,0.07729292]
[1645202839080,0.88826,2816.5,2815.9,0.09517322]
[1645202839735,0.62040363,2816.6,2815.9,0.09517322]
[1645202839935,1.77671,2816.5,2815.9,0.09517322]
[1645202841037,1.50866363,2816.6,2815.9,0.09517322]
[1645202841636,1.80866363,2816.6,2815.9,0.09517322]
[1645202841838,0.88826,2816.6,2815.9,0.09517322]
[1645202842036,0.00232072,2816.8,2815.9,2.75940322]
[1645202842237,0.00232072,2816.8,2816.0,3.5]
[1645202842437,0.00232072,2816.8,2816.0,4.5]
[1645202842640,0.00232072,2816.8,2816.1,1.7384]
[1645202842940,0.00232075,2816.8,2816.2,3.5]
[1645202843137,0.00232075,2816.8,2816.5,0.8878918]
[1645202843338,0.00232075,2816.8,2816.6,3.6774]
[1645202843592,0.00232075,2816.8,2816.6,4.56533]
[1645202843784,0.00232075,2816.8,2816.7,4.5]
[1645202843785,2.075e-05,2816.8,2816.7,4.5]
[1645202843987,4.166e-05,2816.8,2816.7,9.5]
[1645202844184,4.166e-05,2816.8,2816.7,10.217]
[1645202844785,4.166e-05,2816.8,2816.7,5.217]
[1645202844985,4.166e-05,2816.8,2816.7,7.87994]
[1645202845186,1.223,2818.6,2816.7,7.87994]
[1645202845385,1.223,2818.6,2817.1,1.7754]
[1645202845589,1.223,2818.6,2817.2,3.5]
[1645202845986,0.80261658,2818.5,2817.2,3.5]
[1645202846186,0.88773,2818.1,2817.3,1.0]
[1645202846388,0.88773,2818.1,2817.1,5.2754]
[1645202846389,1.7754,2818.4,2817.2,1.0]
[1645202846586,0.80261658,2818.5,2817.2,1.0]
[1645202846786,0.70433537,2818.0,2816.8,3.5]
[1645202846988,1.00433537,2818.0,2816.6,2.1974]
[1645202847238,0.70433537,2818.0,2816.7,3.5]
[1645202847438,0.70433537,2818.0,2817.0,1.77544]
[1645202847638,0.70433537,2818.0,2817.1,3.5]
[1645202847837,1.2189,2818.4,2817.1,3.5]
[1645202848345,1.2189,2818.4,2817.2,1.0]
[1645202848543,2.66349,2818.5,2816.9,3.6774]
[1645202848746,0.00236798,2817.9,2817.0,1.06385798]
[1645202848939,0.88781,2817.8,2817.1,3.5]
[1645202849742,0.00236798,2817.9,2817.2,1.0]
[1645202849940,1.223,2818.6,2817.3,3.5]
[1645202849941,0.00241457,2817.6,2817.3,3.5]
[1645202850341,0.00241457,2817.6,2817.4,1.0]
[1645202850541,0.00241457,2817.6,2817.5,3.5]
[1645202850980,0.00241457,2817.6,2817.5,1.0]
[1645202851379,0.00241457,2817.6,2817.3,6.1627506]
[1645202851380,0.00241457,2817.6,2817.2,0.1774]
[1645202851697,0.00241457,2817.6,2816.7,3.71557624]
[1645202851879,0.00241457,2817.6,2816.7,3.53817624]
[1645202852280,0.00241457,2817.6,2817.0,0.95165798]
[1645202852479,0.00241458,2817.5,2817.1,3.5]
[1645202853080,0.00241458,2817.5,2817.2,1.0]
[1645202853280,0.00241458,2817.5,2817.1,0.1774]
[1645202853484,0.00241458,2817.5,2817.0,0.95165798]
[1645202853684,0.00221587,2817.4,2817.0,1.95165798]
[1645202854735,0.00221588,2817.3,2817.0,1.95165798]
[1645202854933,0.00221588,2817.3,2817.2,0.88774]
[1645202855936,0.00221588,2817.4,2817.0,0.95165798]
[1645202856138,0.00221588,2817.4,2817.0,0.06385798]
[1645202857137,0.00223592,2817.3,2817.1,1.77537]
[1645202857938,0.00223592,2817.3,2817.2,0.88768]
[1645202858240,0.00223592,2817.3,2817.1,1.77537]
[1645202858486,3.592e-05,2817.3,2817.1,9.5506369]
[1645202858689,3.592e-05,2817.3,2817.2,5.60325768]
[1645202858886,3.592e-05,2817.3,2817.2,8.68040768]
[1645202859085,0.60386907,2819.0,2817.8,0.00076408]
[1645202859285,0.88755,2818.9,2817.8,0.41776408]
[1645202859486,0.00563433,2818.9,2817.9,3.5]
[1645202859884,0.00563433,2819.1,2817.9,3.5]
[1645202860084,0.00563433,2819.2,2817.9,3.5]
[1645202860706,0.00223487,2818.6,2818.1,0.88745]
[1645202861387,0.00223487,2818.6,2818.0,1.0]
[1645202861784,5.33188454,2819.3,2818.0,1.0]
[1645202861785,0.88753,2818.8,2818.0,1.0]
[1645202861985,0.00223489,2818.5,2818.0,1.0]
[1645202862240,0.00223489,2818.5,2817.8,0.41776408]
[1645202862431,0.00223489,2818.5,2817.8,0.00076408]
[1645202863230,5.58975374,2819.3,2817.8,0.00076408]
[1645202863432,0.8875984,2819.2,2817.8,3.50076408]
[1645202863631,6.47731374,2819.3,2817.8,3.50076408]
[1645202863632,0.88755,2818.7,2817.9,0.88752]
[1645202863833,0.88755,2818.7,2818.0,0.02556432]
[1645202864531,0.88978549,2818.7,2818.0,0.02556432]
[1645202865331,0.00223549,2818.7,2818.0,0.02556432]
[1645202865732,0.00223539,2818.7,2818.0,0.02556432]
[1645202866488,0.88767,2818.3,2818.0,0.02556432]
[1645202867286,1.50422525,2818.3,2818.0,0.02556432]
[1645202867488,1.50422525,2818.3,2818.0,0.00246432]
[1645202868888,1.50422525,2818.3,2818.2,0.02025214]
[1645202869090,0.61655525,2818.3,2818.2,0.02025214]
[1645202869487,4.4389591,2818.4,2818.2,0.02025214]
[1645202869488,1.77542,2818.4,2818.2,0.02025214]
[1645202869742,0.8877,2818.5,2818.2,0.02025214]
[1645202870637,1.43867207,2818.5,2818.2,0.02025214]
[1645202871234,1.77532,2818.4,2818.2,0.02025214]
[1645202873035,1.86143616,2818.4,2818.2,0.02025214]
[1645202873689,0.3,2818.3,2818.2,0.02025214]
[1645202873895,0.3,2818.3,2818.2,0.01787339]
[1645202875291,1.77532,2818.4,2818.2,0.01787339]
[1645202875692,1.43867207,2818.5,2818.2,0.01787339]
[1645202876088,0.8877,2818.5,2818.2,0.01787339]
[1645202878733,0.00470074,2818.3,2817.8,0.00076408]
[1645202878932,0.88765,2818.2,2817.8,0.00076408]
[1645202879333,0.88765,2818.2,2817.8,3.50076408]
[1645202880234,0.00470074,2818.3,2817.8,3.50076408]
[1645202880435,0.00470074,2818.3,2817.8,0.00076408]
[1645202882185,0.88762,2818.2,2817.8,0.00076408]
[1645202883783,0.88870747,2818.2,2817.8,0.00076408]
[1645202884833,0.00021173,2817.8,2817.4,5.00897011]
[1645202885031,0.00021173,2817.8,2817.3,1.88771]
[1645202885230,4.0,2817.7,2817.3,1.77521]
[1645202885433,4.0,2817.7,2816.9,0.59989677]
[1645202885434,2.3557486,2817.6,2816.9,0.00549677]
[1645202885632,0.70576943,2817.1,2816.9,0.00549677]
[1645202885832,0.70576943,2817.1,2816.7,0.00145135]
[1645202886031,1.00576943,2817.1,2816.7,0.00137429]
[1645202886229,1.00576943,2817.1,2816.9,0.00549679]
[1645202886431,1.7766915,2817.0,2816.9,0.00549679]
[1645202886632,1.7766915,2817.0,2815.9,0.09517322]
[1645202886830,1.77679,2816.8,2815.9,0.09517322]
[1645202887032,0.3,2816.7,2815.9,0.09517322]
[1645202887332,0.88839,2816.2,2815.9,0.09517322]
[1645202887731,2.66481,2816.8,2815.9,0.09517322]
[1645202888133,2.96481,2816.8,2815.9,0.09517322]
[1645202888334,2.66481,2816.8,2815.9,0.09517322]
[1645202888795,2.96481,2816.8,2816.1,0.88801]
[1645202889095,2.96481,2816.8,2815.9,0.09517322]
[1645202889295,0.3,2816.8,2815.9,0.09517322]
[1645202889696,2.25106943,2817.1,2816.3,0.00158343]
[1645202889899,0.88799,2816.8,2816.3,0.00158343]
[1645202890096,1.5453,2817.1,2816.3,0.00158343]
[1645202890696,0.08611616,2817.0,2816.3,0.00158343]
[1645202890896,0.88836,2816.7,2816.4,0.00158337]
[1645202891097,0.58857791,2816.5,2816.4,0.00158337]
[1645202891597,0.58857791,2816.5,2815.0,0.02986705]
[1645202891598,0.62753386,2815.7,2815.0,0.02986705]
[1645202891797,0.62753386,2815.7,2815.0,0.0035158]
[1645202891798,0.88856,2815.7,2815.0,0.0035158]
[1645202891996,0.88856,2815.7,2814.6,0.0035158]
[1645202891997,1.7771875,2815.7,2814.6,0.0035158]
[1645202892249,1.18856,2815.7,2814.6,0.0035158]
[1645202892637,0.3,2815.7,2814.6,0.0035158]
[1645202892838,0.3,2815.8,2814.6,0.0035158]
[1645202893236,0.88852,2815.3,2814.6,0.0035158]
[1645202893836,0.88852,2815.3,2814.4,0.0035158]
[1645202894238,0.88852,2815.3,2814.5,0.1776]
[1645202894438,0.88852,2815.3,2814.1,2.8314809]
[1645202894439,0.88852,2815.3,2814.2,0.1811158]
[1645202894639,0.88852,2815.3,2814.8,0.00130701]
[1645202895840,0.88852,2815.3,2814.9,0.00130697]
[1645202896684,0.69616077,2815.1,2814.9,0.00130697]
[1645202896984,2.47370077,2815.1,2815.0,0.00130694]
[1645202898188,2.47370077,2815.1,2814.5,0.00522855]
[1645202898189,2.47370077,2815.1,2814.9,0.00133307]
[1645202899190,0.3,2815.0,2814.9,0.00133307]
[1645202899389,0.3,2815.0,2814.9,0.00133309]
[1645202899590,2.47370077,2815.1,2814.9,0.00133309]
[1645202900242,0.69616077,2815.1,2814.9,0.00133309]
[1645202900438,0.88852,2815.3,2814.9,0.00133309]
[1645202900639,4.4609,2815.7,2814.9,0.00133309]
[1645202900640,10.2698,2815.7,2814.9,0.00133309]
[1645202901241,1.77724,2815.5,2814.9,0.00133309]
[1645202901645,0.65624169,2815.3,2814.9,0.00133309]
[1645202901942,0.88855,2815.4,2815.2,0.00132798]
[1645202902943,4.1607,2815.7,2815.2,0.00132798]
[1645202902944,5.04916,2815.7,2815.2,0.00132798]
[1645202903243,3.0099,2815.7,2815.2,0.00132798]
[1645202904083,6.62786889,2816.1,2815.3,0.00132791]
[1645202904084,0.07434199,2816.1,2815.3,0.00132791]
[1645202904284,4.0636,2816.2,2815.3,0.00132791]
[1645202904583,0.00223331,2816.6,2815.3,0.00132791]
[1645202904888,0.00223331,2816.6,2815.3,3.50132791]
[1645202905086,0.88827,2816.4,2815.3,3.50132791]
[1645202905483,0.88827,2816.4,2815.6,0.00132869]
[1645202905886,0.56414747,2816.6,2815.6,0.00132869]
[1645202905887,0.6005888,2816.1,2815.6,0.00132869]
[1645202906285,1.777,2815.9,2815.6,0.00132869]
[1645202906584,1.777,2815.9,2815.2,0.00531562]
[1645202906784,0.68326798,2815.6,2815.2,0.00531562]
[1645202906984,0.8886,2815.5,2815.2,0.00531562]
[1645202907255,0.68326798,2815.6,2815.2,0.00531562]
[1645202907846,0.68326798,2815.6,2815.3,0.00132885]
[1645202908543,0.88861,2815.5,2815.3,0.00132885]
[1645202908745,0.88861,2815.5,2814.9,0.04320648]
[1645202909043,0.88861,2815.5,2815.3,0.00133198]
[1645202910244,0.88861,2815.5,2814.6,0.0035158]
[1645202910644,0.88861,2815.5,2814.2,7.61977]
[1645202910645,0.88861,2815.5,2814.4,0.0035158]
[1645202910844,0.88861,2815.5,2814.4,3.5035158]
[1645202911124,2.46062798,2815.6,2814.4,3.5035158]
[1645202911125,0.68326798,2815.6,2814.4,3.5035158]
[1645202911329,0.68326798,2815.6,2814.5,1.1776]
[1645202911520,0.68326798,2815.6,2814.6,0.0035158]
[1645202911924,0.68326798,2815.6,2814.4,0.1811158]
[1645202912122,0.68326798,2815.6,2814.4,1.9581024]
[1645202912323,1.57188798,2815.6,2814.4,1.9581024]
[1645202912523,0.60324901,2815.1,2815.0,0.00155124]
[1645202913923,0.60324901,2815.1,2814.5,0.00620589]
[1645202913924,0.60324901,2815.1,2814.9,0.00155127]
[1645202914326,0.90324901,2815.1,2814.9,5.127e-05]
[1645202914523,0.98936517,2815.1,2814.9,5.127e-05]
[1645202914748,2.76710517,2815.1,2814.9,5.127e-05]
[1645202915148,2.76710517,2815.1,2814.9,0.00155129]
[1645202915751,0.3,2815.0,2814.9,5.129e-05]
[1645202916147,0.3,2815.0,2813.5,0.0035158]
[1645202916148,0.08611616,2815.0,2813.5,0.0035158]
[1645202916349,0.50654014,2813.9,2813.5,0.0035158]
[1645202916553,0.50654014,2813.9,2813.2,0.1776]
[1645202916554,1.7781592,2814.8,2813.2,0.0035158]
[1645202916750,8.1929,2814.9,2813.3,0.0035158]
[1645202916751,0.3,2814.7,2813.3,0.0035158]
[1645202916948,0.3,2814.7,2813.0,3.6811158]
[1645202917147,3.42081616,2814.8,2813.1,0.0035158]
[1645202917351,1.77817,2814.6,2813.6,0.00127416]
[1645202917553,0.64167888,2814.4,2813.6,0.00127416]
[1645202918252,0.58202401,2813.9,2813.6,0.00127416]
[1645202918689,0.88918,2814.1,2813.4,0.00509686]
[1645202918889,11.3792,2814.9,2813.4,0.00509686]
[1645202919089,3.6347,2814.8,2813.4,0.00509686]
[1645202919289,0.08611616,2814.7,2813.4,0.00509686]
[1645202919688,0.08611616,2814.7,2813.6,0.00127414]
[1645202919891,0.68313614,2814.3,2813.6,0.00127414]
[1645202920893,0.68313614,2814.3,2813.8,0.00130612]
[1645202922094,0.7692523,2814.3,2813.9,0.00130607]
[1645202922371,1.0692523,2814.3,2813.9,0.00130607]
[1645202922553,1.77858,2814.2,2813.9,0.00130607]
[1645202922755,2.66781,2814.2,2812.7,7.45004694]
[1645202922955,3.55699,2814.2,2812.8,0.00353142]
[1645202923355,2.66776,2814.2,2814.0,0.00130605]
[1645202923756,0.57981484,2814.1,2814.0,0.00130605]
[1645202924054,0.57981484,2814.1,2814.0,6.05e-06]
[1645202924055,5.665931,2814.1,2814.0,6.05e-06]
[1645202924253,5.665931,2814.1,2813.5,0.00522498]
[1645202924254,5.965931,2814.1,2813.5,0.00522498]
[1645202924454,1.7789,2814.0,2813.5,0.00522498]
[1645202924655,2.16501616,2814.0,2813.5,0.00522498]
[1645202924855,0.97555576,2813.9,2813.4,0.00129847]
[1645202925055,13.91405576,2813.9,2813.4,0.00129847]
[1645202925457,13.8279396,2813.9,2813.4,0.00129847]
[1645202925858,13.8279396,2813.9,2812.6,0.06385798]
[1645202926099,13.8279396,2813.9,2812.9,0.88908]
[1645202926100,12.9385,2813.9,2812.9,0.88908]
[1645202926295,2.9973,2813.9,2812.7,0.1776]
[1645202926493,2.9973,2813.9,2812.8,0.00353142]
[1645202926694,0.6945315,2813.4,2812.8,0.00353142]
[1645202928097,0.6945315,2813.4,2813.0,0.00151692]
[1645202929495,0.6945315,2813.4,2813.1,0.00151687]
[1645202930558,0.6945315,2813.4,2813.1,0.00151684]
[1645202930759,0.6936029,2813.4,2813.1,0.00151684]
[1645202931959,1.5829829,2813.4,2813.1,0.00151684]
[1645202932959,1.5829829,2813.4,2813.1,0.00125594]
[1645202933161,0.6936029,2813.4,2813.1,0.00125594]
[1645202933793,1.7792996,2813.4,2813.1,0.00125594]
[1645202934799,0.8899896,2813.4,2813.1,0.00125594]
[1645202936198,0.88934,2813.3,2813.1,0.00125594]
[1645202936602,0.88934,2813.3,2813.1,0.00121213]
[1645202936800,0.38611616,2813.2,2813.1,1.213e-05]
[1645202936999,0.38611616,2813.2,2812.7,0.00484926]
[1645202937000,3.0,2813.1,2812.7,0.00484926]
[1645202937245,3.38611616,2813.1,2812.7,0.00484926]
[1645202937740,3.38611616,2813.1,2811.4,0.00353142]
[1645202937741,0.54603513,2812.9,2811.4,0.00353142]
[1645202937942,0.51121713,2811.9,2811.4,0.00353142]
[1645202938144,0.51121713,2811.9,2811.3,7.49]
[1645202938341,0.54852369,2812.2,2811.9,1.02243426]
[1645202940243,0.54852369,2812.2,2811.9,1.02394872]
[1645202941893,0.88976,2812.6,2811.9,1.02394872]
[1645202941894,2.66901,2813.0,2811.9,1.02394872]
[1645202942093,9.6316,2813.1,2811.9,1.02748014]
[1645202942094,6.8372,2813.1,2811.9,1.02748014]
[1645202942491,3.7269,2813.1,2811.9,1.02748014]
[1645202942690,3.7269,2813.1,2811.9,1.0289946]
[1645202942897,0.55728324,2812.1,2811.9,1.02748014]
[1645202943092,0.55728324,2812.1,2811.9,1.02394872]
[1645202943692,6.48217616,2813.1,2811.9,1.02394872]
[1645202943893,11.78217616,2813.1,2812.0,0.00353142]
[1645202944092,12.97191366,2813.1,2812.0,0.00353142]
[1645202944293,7.97191366,2813.1,2812.0,0.00353142]
[1645202944745,1.18973,2813.0,2812.0,0.00353142]
[1645202944947,0.7151231,2812.2,2812.0,0.0085187]
[1645202945247,3.5,2812.1,2811.3,0.00353142]
[1645202945447,3.5,2812.1,2809.8,8.26]
[1645202945448,20.81,2811.9,2809.9,0.5]
[1645202945646,5.0,2811.6,2810.8,0.00348196]
[1645202945849,0.417,2811.8,2810.2,7.49]
[1645202945850,2.30718,2811.8,2810.2,7.49]
[1645202946047,5.08611616,2811.5,2810.3,0.00348196]
[1645202946247,21.227,2811.4,2810.3,0.00348196]
[1645202946448,21.227,2811.4,2810.4,0.04433703]
[1645202946449,1.80311616,2811.4,2810.4,0.04433703]
[1645202946651,0.60998924,2811.3,2810.4,0.04433703]
[1645202946851,0.60998924,2811.3,2809.7,3.55179796]
[1645202947152,0.60998924,2811.3,2809.8,0.05122953]
[1645202947153,0.8902428,2810.6,2809.8,0.05122953]
[1645202947348,0.08611616,2811.3,2809.8,0.05122953]
[1645202947349,1.31061616,2811.3,2809.8,0.05122953]
[1645202947548,1.31061616,2811.3,2809.9,0.04717915]
[1645202948150,0.54604139,2810.6,2809.9,0.04717915]
[1645202948350,0.89025,2811.1,2809.9,0.04717915]
[1645202948351,3.7357,2811.0,2809.9,0.04717915]
[1645202948603,4.87335,2811.4,2809.9,0.04717915]
[1645202948604,3.0926,2811.4,2810.5,0.00150276]
[1645202949098,3.0926,2811.4,2810.6,0.04320018]
[1645202949297,0.89015,2811.5,2810.6,0.04320018]
[1645202949498,0.69635679,2810.9,2810.6,0.04320018]
[1645202949898,0.69635679,2810.9,2810.8,0.00150258]
[1645202950297,0.69635679,2810.9,2810.8,0.04356592]
[1645202951297,0.89009,2811.1,2810.8,0.04206334]
[1645202951896,2.6700351,2811.5,2810.8,0.04206334]
[1645202951897,0.88998,2811.3,2810.8,0.04206334]
[1645202952354,1.44616872,2811.3,2810.8,0.04356592]
[1645202952851,1.44616872,2811.3,2810.9,0.04149491]
[1645202953351,0.88998,2811.3,2810.9,0.04272933]
[1645202953552,2.24301,2811.6,2810.9,0.04272933]
[1645202953753,1.09351,2811.6,2811.0,0.04092649]
[1645202954353,0.56594885,2811.4,2811.0,0.04092649]
[1645202954753,0.56594885,2811.4,2811.2,0.00123432]
[1645202955854,1.09351,2811.6,2811.2,0.00123432]
[1645202956504,1.39351,2811.6,2811.2,0.00123432]
[1645202956706,3.5,2811.5,2811.2,0.00123432]
[1645202956904,7.19707672,2811.4,2811.0,6.081e-05]
[1645202957103,2.5,2811.3,2810.8,0.00513693]
[1645202957304,2.8,2811.3,2810.8,0.00513693]
[1645202957504,3.77626616,2811.3,2810.8,0.00513693]
[1645202958307,3.77626616,2811.3,2809.9,0.00348196]
[1645202958506,0.62289119,2810.1,2809.9,0.00348196]
[1645202958708,0.62289119,2810.1,2809.8,0.68602616]
[1645202958907,1.51337119,2810.1,2809.8,0.68602616]
[1645202960450,0.3,2810.0,2809.8,2.616e-05]
[1645202960649,1.19058,2810.0,2809.8,0.00151896]
[1645202961050,0.89058,2810.0,2809.8,0.00151896]
[1645202961448,0.89058,2810.0,2808.8,0.43390347]
[1645202961750,0.89058,2810.0,2809.8,0.00149283]
[1645202962749,0.57221767,2809.9,2809.8,0.00149283]
[1645202962952,2.65343767,2809.9,2808.8,8.10180347]
[1645202963150,2.65343767,2809.9,2808.8,0.43390347]
[1645202963151,0.89061,2809.6,2808.8,0.43390347]
[1645202963348,1.78122,2809.7,2808.8,0.43390347]
[1645202964300,0.61483466,2809.3,2808.8,0.43390347]
[1645202965400,0.89066,2809.5,2808.7,2.56473226]
[1645202965605,0.89066,2809.5,2808.9,0.00147241]
[1645202966402,0.71654147,2809.4,2808.9,0.00147241]
[1645202966602,0.71654147,2809.4,2808.7,2.23022593]
[1645202966801,0.71166302,2808.9,2808.7,2.23022593]
[1645202967002,1.78152,2809.3,2809.1,0.90261601]
[1645202967258,0.67816613,2809.2,2809.1,0.90261601]
[1645202968262,2.6720457,2809.4,2809.1,0.90261601]
[1645202968263,0.89069,2809.4,2809.1,0.90261601]
[1645202968460,0.8905208,2809.7,2809.1,0.90261601]
[1645202968760,0.11777418,2810.0,2809.1,0.90261601]
[1645202969259,0.10070633,2809.3,2809.1,0.90261601]
[1645202970363,0.79120806,2809.3,2809.1,0.90398887]
[1645202970765,0.10070633,2809.3,2809.1,0.90398887]
[1645202971797,0.73263914,2809.3,2809.1,0.90398887]
[1645202973500,0.73263914,2809.3,2808.7,2.23022593]
[1645202973501,1.62333914,2809.3,2808.7,2.23022593]
[1645202973700,1.62333914,2809.3,2808.6,0.00549244]
[1645202973701,6.0,2809.2,2808.6,0.00549244]
[1645202973899,4.80811,2809.1,2808.6,0.00549244]
[1645202974101,4.80811,2809.1,2807.4,0.06]
[1645202974102,4.89422616,2809.1,2807.4,0.06]
[1645202974400,0.69637625,2807.7,2807.4,0.06]
[1645202974598,0.8910468,2808.0,2807.4,0.06]
[1645202976154,2.3583,2808.9,2807.4,0.06]
[1645202976352,3.5315,2809.1,2807.5,0.89078]
[1645202976353,0.3,2809.1,2807.5,0.89078]
[1645202976554,0.3,2809.1,2807.4,0.06]
[1645202976756,4.3704,2809.1,2807.4,7.55]
[1645202977054,0.68820269,2808.4,2807.4,7.55]
[1645202977553,0.68820269,2808.4,2807.7,0.00176354]
[1645202977855,0.63918832,2807.9,2807.7,0.00176354]
[1645202978695,0.63918832,2807.9,2807.7,0.0014583]
[1645202981101,0.63918832,2807.9,2807.7,0.0029166]
[1645202981300,0.63918832,2807.9,2807.7,0.0014583]
[1645202981902,1.78238,2807.8,2807.7,0.0014583]
[1645202982359,1.78238,2807.8,2807.7,0.00119659]
[1645202982759,5.58238,2807.8,2807.7,0.00119659]
[1645202982960,2.08238,2807.8,2807.7,0.00119659]
[1645202983763,2.08238,2807.8,2807.4,0.06]
[1645202983962,0.57800166,2807.3,2806.8,7.45345191]
[1645202984161,1.7825734,2807.2,2806.9,0.0034349]
[1645202984361,1.7825734,2807.2,2806.8,7.49]
[1645202985163,0.89134,2807.1,2806.8,7.49]
[1645202985365,0.89145,2807.0,2806.8,7.49]
[1645202985562,1.7828952,2807.0,2806.8,7.49]
[1645202985762,1.7828952,2807.0,2806.2,0.0034349]
[1645202985995,1.7828952,2807.0,2806.9,0.00145687]
[1645202986197,2.48534871,2807.0,2806.9,0.00145687]
[1645202986500,0.70245351,2807.0,2806.9,0.00145687]
[1645202986898,1.00245351,2807.0,2806.9,0.00145687]
[1645202987298,0.89165,2806.9,2806.8,0.0014569]
[1645202987697,1.19165,2806.9,2806.8,0.0014569]
[1645202987898,1.49165,2806.9,2806.8,0.0014569]
[1645202988301,0.89164,2806.7,2806.2,0.0034349]
[1645202988501,0.89164,2806.7,2806.1,0.2505]
[1645202988502,0.69052527,2806.2,2806.1,0.2505]
[1645202989104,0.89161,2806.4,2806.2,1.6158822]
[1645202989750,1.7832125,2806.4,2806.2,1.6158822]
[1645202990454,0.57294037,2806.7,2806.2,1.6158822]
[1645202990654,0.8914417,2806.5,2806.2,1.6158822]
[1645202990854,0.8914417,2806.5,2806.2,1.61732215]
[1645202991455,0.89144,2806.8,2806.2,1.61732215]
[1645202991655,0.8913177,2807.0,2806.2,1.61732215]
[1645202992053,0.89142,2806.9,2806.2,1.62075702]
[1645202992454,0.59702131,2806.8,2806.2,1.62075702]
[1645202992655,1.7829275,2806.9,2806.2,1.61732212]
[1645202992857,0.89142,2807.0,2806.2,1.62075702]
[1645202993055,0.89142,2807.0,2806.4,0.00143982]
[1645202993511,0.08891128,2807.1,2806.4,0.00143982]
[1645202993705,0.08891128,2807.1,2806.8,5.0]
[1645202993905,0.08891128,2807.1,2807.0,5.0]
[1645202994105,0.02682723,2807.1,2807.0,5.1781]
[1645202994309,0.8908824,2808.4,2807.0,6.1781]
[1645202994505,9.501,2808.7,2807.3,5.89084]
[1645202994506,1.7818,2808.7,2807.3,5.89084]
[1645202994708,0.5412621,2808.7,2807.6,0.89077]
[1645202994906,0.5412621,2808.7,2807.7,0.0034349]
[1645202995104,1.4320499,2808.7,2807.7,0.0034349]
[1645202995306,1.4320499,2808.7,2807.5,0.0034349]
[1645202995704,1.4320499,2808.7,2807.9,0.00092223]
[1645202996308,0.60986961,2808.2,2807.9,0.00092223]
[1645202996708,1.78181,2808.8,2807.7,0.00368907]
[1645202997012,1.78181,2808.8,2807.7,0.00712397]
[1645202997013,0.3,2808.8,2807.7,0.00712397]
[1645202997253,12.9178,2809.3,2807.7,0.00712397]
[1645202997254,3.5,2809.1,2807.7,0.00712397]
[1645202997454,30.5278,2809.3,2807.7,0.00368907]
[1645202997658,0.3,2809.1,2807.7,0.00368907]
[1645202997854,0.71251549,2808.5,2807.7,0.00368907]
[1645202998054,0.71251549,2808.5,2808.1,0.00092215]
[1645202998659,1.60353419,2808.5,2808.1,0.00092215]
[1645202999257,1.60353419,2808.5,2808.2,0.00126536]
[1645202999258,2.49455419,2808.5,2808.2,0.00126536]
[1645202999660,1.78225,2808.4,2808.2,0.00126536]
[1645202999857,2.79455419,2808.5,2808.2,0.00126536]
[1645203000256,3.18067035,2808.5,2808.2,0.00126536]
[1645203000457,3.18067035,2808.5,2808.2,0.00126534]
[1645203000759,0.89109,2808.4,2808.2,0.00126534]
[1645203001012,1.90353419,2808.5,2808.2,0.00126534]
[1645203001808,1.60353419,2808.5,2808.2,0.00126534]